{"text_format":"1","workbook":"xlsx","n_sheets":14,"sheets":["HOME","كانون الثاني 2022","شباط 2022  ","آذار   2022","نيسان 2022","ايار2022","حزيران2022","تموز 2022","آب  2022 ","ايلول 2022 ","تشرين الأول2022","تشرين الثاني2022","كانون الأول2022","جدول الأشهر-2022"],"not_rendered":{"charts":0,"images":3,"macros":1,"external_links":0,"defined_names":16,"comments":1,"pivot_tables":0},"unopened":[],"bounds":{"document_bytes":16777216,"sheet_cells":100000,"rows_first":2000,"rows_last":500,"rows_between":2000,"halvings":0,"cell_chars":16384,"cell_head_chars":4096},"cells_cut":0,"cells_raw":0,"read":"whole","date_system":"1900"}

{"sheet":"HOME","index":0,"n_rows":12,"n_cols":7,"rows_kept":12,"cut":false,"hidden":false,"merged":[]}
[null,null,null,2022,null,null,"كانون الثاني 2022"]
[null,null,"كانون الثاني","شباط  ","آذار  ",null,"شباط  2022"]
[null,null,"نيسان  ","ايار  ","حزيران  ",null,"آذار  2022"]
[null,null,"تموز  ","آب  ","ايلول  ",null,"نيسان  2022"]
[null,null,"تشرين الأول  ","تشرين الثاني  ","كانون الأول  ",null,"ايار  2022"]
[null,null,null,"جدول الأشهر",null,null,"حزيران  2022"]
[null,null,null,null,null,null,"تموز  2022"]
[null,null,null,null,null,null,"آب  2022"]
[null,null,null,null,null,null,"ايلول  2022"]
[null,null,null,null,null,null,"تشرين الأول  2022"]
[null,null,null,null,null,null,"تشرين الثاني  2022"]
[null,null,null,null,null,null,"كانون الأول  2022"]

{"sheet":"كانون الثاني 2022","index":1,"n_rows":28,"n_cols":10,"rows_kept":28,"cut":false,"hidden":false,"merged":[[6,4,6,5],[3,1,3,2],[3,3,3,4],[2,0,4,0],[4,4,4,5],[5,4,5,5],[7,4,7,5],[8,4,8,5],[21,4,21,5],[16,4,16,5],[17,4,17,5],[18,4,18,5],[9,4,9,5],[10,4,10,5],[12,4,12,5],[13,4,13,5],[11,4,11,5],[23,0,23,1],[19,4,19,5],[20,4,20,5],[14,4,14,5],[15,4,15,5],[21,0,22,0]]}
["بنــــــــــــــــــــاية الضـــــــــــــــــــــــــحى"]
["كشف حساب المصعد و المبنى عن العام  2022",null,null,null,null,null,null,null,null,"المصاريف"]
["الطابق","                 الشهر: ","سباط -2022",null,null,"بلوك A","رابط الصفحات'!A1",null,"كانون الثاني 2022","راتب الناطور/ أبو ضياء"]
[null,"الإيرادات",null,"المصاريف",null,null,null,null,"شباط  2022","مواد تنظيف"]
[null,"الإسم","المبلغ","المصاريف","الشرح",null,null,null,"آذار  2022","فاتورة كهرباء"]
[null,"احمد غانم",{"$f":"'جدول الأشهر-2022'!C4","v":35000},125000,"راتب الناطور/ أبو ضياء",null,null,null,"نيسان  2022","صيانة المصعد"]
[5,"احمد يحيا",{"$f":"'جدول الأشهر-2022'!C5","v":0},10500,"مواد تنظيف",null,"المرحوم طلال بدر",null,"ايار  2022","قطع غيار"]
[null,"خليل هواري",{"$f":"'جدول الأشهر-2022'!C6","v":30000},75000,"بذمة الناطورالذي استلم من رياض و ترك فجأة",null,null,null,"حزيران  2022","صيانة المولد "]
[null,"عباس كوراني",{"$f":"'جدول الأشهر-2022'!C7","v":35000},9000,"مكنسة مع عصا",null,"المرحوم زكي حمادي",null,"تموز  2022","صيانة المجارير و الصحية"]
[4,"هاني بري",{"$f":"'جدول الأشهر-2022'!C8","v":0},169000,"احمد يحيا - فواتير صيانة كهرباء ",null,"ليلى نور الدين/ ابوهاشم",null,"آب  2022","مازوت/للمولد"]
[null,"شوقي فقية",{"$f":"'جدول الأشهر-2022'!C9","v":35000},null,null,null,null,null,"ايلول  2022","انارة / لمبات"]
[null," د بلان حمية",{"$f":"'جدول الأشهر-2022'!C10","v":0},null,null,null,null,null,"تشرين الأول  2022","دهان"]
[3,"عبداللة هرمناني",{"$f":"'جدول الأشهر-2022'!C11","v":35000},null,null,null,null,null,"تشرين الثاني  2022"]
[null,"فؤاد إسماعيل",{"$f":"'جدول الأشهر-2022'!C12","v":35000},null,null,null,null,null,"كانون الأول  2022"]
[null,"علي المولى",{"$f":"'جدول الأشهر-2022'!C13","v":35000},null,null,null,"شقة الحاج سميح هيدوس",null,"جدول الأشهر"]
[2,"علي كركي",{"$f":"'جدول الأشهر-2022'!C14","v":35000}]
[null,"محمد صفي الدين",{"$f":"'جدول الأشهر-2022'!C15","v":35000}]
[null,"خليل شلهوب",{"$f":"'جدول الأشهر-2022'!C16","v":25000},null,null,null,"ابراهيم ابو ملحم"]
[1,"اسامة زين الدين",{"$f":"'جدول الأشهر-2022'!C17","v":25000}]
[null,"احمد حرب",{"$f":"'جدول الأشهر-2022'!C18","v":25000}]
["ارضي",null,{"$f":"'جدول الأشهر-2022'!C19","v":25000},null,null,null,"حسن عواضة"]
["ايراد المحلات","الفرن",{"$f":"'جدول الأشهر-2022'!C20","v":0}]
[]
["المجموع  ",null,{"$f":"SUM(C6:C23)","v":410000},{"$f":"SUM(D6:D23)","v":388500},"رصيد الشهر",{"$f":"C24-D24","v":21500}]
[null,null,null,null,"الرصيد السابق",65750]
[null,null,null,null,"اجمالي الرصيد ",{"$f":"F24+F25","v":87250}]
[null,null,{"$f":"NumberToText(F26,\"ليرة لبنانية\",\"ليرة\")","v":{"$error":"#VALUE!"}}]
["التوقيع:",null,null,"التوقيع:"]

{"sheet":"شباط 2022  ","index":2,"n_rows":28,"n_cols":11,"rows_kept":28,"cut":false,"hidden":false,"merged":[[6,4,6,5],[2,0,4,0],[3,1,3,2],[3,3,3,4],[4,4,4,5],[5,4,5,5],[18,4,18,5],[7,4,7,5],[8,4,8,5],[9,4,9,5],[10,4,10,5],[11,4,11,5],[12,4,12,5],[13,4,13,5],[14,4,14,5],[15,4,15,5],[16,4,16,5],[17,4,17,5],[19,4,19,5],[20,4,20,5],[21,4,21,5],[23,0,23,1],[21,0,22,0],[22,4,22,5]]}
["بنــــــــــــــــــــاية الضـــــــــــــــــــــــــحى"]
["كشف حساب المصعد و المبنى عن العام  2022"]
["الطابق","                 الشهر: ","سباط -2022",null,null,"بلوك A","رابط الصفحات'!A1",null,"كانون الثاني 2022"]
[null,"الإيرادات",null,"المصاريف",null,null,null,null,"شباط  2022"]
[null,"الإسم","المبلغ","المصاريف","الشرح",null,null,null,"آذار  2022"]
[null,"احمد غانم",{"$f":"'جدول الأشهر-2022'!D4","v":35000},125000,"راتب الناطور/ أبو ضياء",null,null,null,"نيسان  2022"]
[5,"احمد يحيا",{"$f":"'جدول الأشهر-2022'!D5","v":0},2500,"مواد تنظيف",null,"طلال بدر",null,"ايار  2022"]
[null,"خليل هواري",{"$f":"'جدول الأشهر-2022'!D6","v":30000},281500,"بدل صيانة غرفة الناطور فواتير 6 و4585 1/1/2021",null,null,null,"حزيران  2022"]
[null,"عباس كوراني",{"$f":"'جدول الأشهر-2022'!D7","v":35000},186000,"فواتير كهرباء المصعد و الناعورة عن اشهر 1و2 -2019",null,"المرحوم زكي حمادي",null,"تموز  2022"]
[4,"هاني بري",{"$f":"'جدول الأشهر-2022'!D8","v":0},null,null,null,"ليلى نور الدين/ ابوهاشم",null,"آب  2022",null,{"$f":"304+68","v":372}]
[null,"شوقي فقية",{"$f":"'جدول الأشهر-2022'!D9","v":35000},null,null,null,null,null,"ايلول  2022",null,{"$f":"K10/2","v":186}]
[null," د بلان حمية",{"$f":"'جدول الأشهر-2022'!D10","v":0},null,null,null,null,null,"تشرين الأول  2022"]
[3,"عبداللة هرمناني",{"$f":"'جدول الأشهر-2022'!D11","v":35000},null,null,null,null,null,"تشرين الثاني  2022"]
[null,"فؤاد إسماعيل",{"$f":"'جدول الأشهر-2022'!D12","v":35000},null,null,null,null,null,"كانون الأول  2022"]
[null,"علي المولى",{"$f":"'جدول الأشهر-2022'!D13","v":35000},null,null,null,"شقة الحاج سميح هيدوس",null,"جدول الأشهر"]
[2,"علي كركي",{"$f":"'جدول الأشهر-2022'!D14","v":35000}]
[null,"محمد صفي الدين",{"$f":"'جدول الأشهر-2022'!D15","v":0}]
[null,"خليل شلهوب",{"$f":"'جدول الأشهر-2022'!D16","v":25000},null,"شاغرة",null,"ابراهيم ابو ملحم"]
[1,"اسامه زين الدين",{"$f":"'جدول الأشهر-2022'!D17","v":25000}]
[null,"احمد حرب",{"$f":"'جدول الأشهر-2022'!D18","v":25000}]
["ارضي",null,{"$f":"'جدول الأشهر-2022'!D19","v":25000},null,null,null,"حسن عواضة"]
["ايراد المحلات","الفرن",{"$f":"'جدول الأشهر-2022'!D20","v":0},null,"ترك"]
[null,"من السكان/تغيير كابين المصعد"]
["المجموع  ",null,{"$f":"SUM(C6:C23)","v":375000},{"$f":"SUM(D6:D23)","v":595000},"رصيد الشهر",{"$f":"C24-D24","v":-220000}]
[null,null,null,null,"الرصيد السابق",{"$f":"'كانون الثاني 2022'!F26","v":87250}]
[null,null,null,null,"اجمالي الرصيد ",{"$f":"F24+F25","v":-132750}]
[null,null,{"$f":"NoToTxt(F26,\"ليرة لبنانية\",\"قرشا\")","v":{"$error":"#NAME?"}}]
["التوقيع:",null,null,"التوقيع:"]

{"sheet":"آذار   2022","index":3,"n_rows":28,"n_cols":9,"rows_kept":28,"cut":false,"hidden":false,"merged":[[6,4,6,5],[2,0,4,0],[3,1,3,2],[3,3,3,4],[4,4,4,5],[5,4,5,5],[18,4,18,5],[7,4,7,5],[8,4,8,5],[9,4,9,5],[10,4,10,5],[11,4,11,5],[12,4,12,5],[13,4,13,5],[14,4,14,5],[15,4,15,5],[16,4,16,5],[17,4,17,5],[19,4,19,5],[20,4,20,5],[21,4,21,5],[23,0,23,1],[21,0,22,0]]}
["بنــــــــــــــــــــاية الضـــــــــــــــــــــــــحى"]
["كشف حساب المصعد و المبنى عن العام  2022"]
["الطابق","                 الشهر: ","آذار -2022",null,null,"بلوك A","رابط الصفحات'!A1",null,"كانون الثاني 2022"]
[null,"الإيرادات",null,"المصاريف",null,null,null,null,"شباط  2022"]
[null,"الإسم","المبلغ","المصاريف","الشرح",null,null,null,"آذار  2022"]
[null,"احمد غانم",{"$f":"'جدول الأشهر-2022'!E4","v":0},null,"راتب الناطور/ أبو ضياء",null,null,null,"نيسان  2022"]
[5,"احمد يحيا",{"$f":"'جدول الأشهر-2022'!E5","v":0},null,"انارة / لمبات توفير - اليتيم",null,"طلال بدر",null,"ايار  2022"]
[null,"خليل هواري",{"$f":"'جدول الأشهر-2022'!E6","v":0},null,"رش و تعقيم المدخل و الادراج",null,null,null,"حزيران  2022"]
[null,"عباس كوراني",{"$f":"'جدول الأشهر-2022'!E7","v":0},null,"صيانة المجارير و الصحية/تنظيف",null,"المرحوم زكي حمادي",null,"تموز  2022"]
[4,"هاني بري",{"$f":"'جدول الأشهر-2022'!E8","v":0},null,null,null,"ليلى نور الدين/ ابوهاشم",null,"آب  2022"]
[null,"شوقي فقية",{"$f":"'جدول الأشهر-2022'!E9","v":0},null,null,null,null,null,"ايلول  2022"]
[null," د بلان حمية",{"$f":"'جدول الأشهر-2022'!E10","v":0},null,null,null,null,null,"تشرين الأول  2022"]
[3,"عبداللة هرمناني",{"$f":"'جدول الأشهر-2022'!E11","v":0},null,null,null,null,null,"تشرين الثاني  2022"]
[null,"فؤاد إسماعيل",{"$f":"'جدول الأشهر-2022'!E12","v":0},null,null,null,null,null,"كانون الأول  2022"]
[null,"علي المولى",{"$f":"'جدول الأشهر-2022'!E13","v":0},null,null,null,"شقة الحاج سميح هيدوس",null,"جدول الأشهر"]
[2,"علي كركي",{"$f":"'جدول الأشهر-2022'!E14","v":0}]
[null,"محمد صفي الدين",{"$f":"'جدول الأشهر-2022'!E15","v":0}]
[null,"خليل شلهوب",{"$f":"'جدول الأشهر-2022'!E16","v":0},null,null,null,"ابراهيم ابو ملحم"]
[1,"اسامه زين الدين",{"$f":"'جدول الأشهر-2022'!E17","v":0}]
[null,"احمد حرب",{"$f":"'جدول الأشهر-2022'!E18","v":0}]
["ارضي",null,{"$f":"'جدول الأشهر-2022'!E19","v":25000},null,null,null,"حسن عواضة"]
["ايراد المحلات","الفرن",{"$f":"'جدول الأشهر-2022'!E20","v":0}]
[]
["المجموع  ",null,{"$f":"SUM(C6:C23)","v":25000},{"$f":"SUM(D6:D23)","v":0},"رصيد الشهر",{"$f":"C24-D24","v":25000}]
[null,null,null,null,"الرصيد السابق",{"$f":"'شباط 2022  '!F26","v":-132750}]
[null,null,null,null,"اجمالي الرصيد ",{"$f":"F24+F25","v":-107750}]
[null,null,{"$f":"NoToTxt(F26,\"ليرة لبنانية\",\"قرشا\")","v":{"$error":"#NAME?"}}]
["التوقيع:",null,null,"التوقيع:"]

{"sheet":"نيسان 2022","index":4,"n_rows":28,"n_cols":9,"rows_kept":28,"cut":false,"hidden":false,"merged":[[6,4,6,5],[2,0,4,0],[3,1,3,2],[3,3,3,4],[4,4,4,5],[5,4,5,5],[18,4,18,5],[7,4,7,5],[8,4,8,5],[9,4,9,5],[10,4,10,5],[11,4,11,5],[12,4,12,5],[13,4,13,5],[14,4,14,5],[15,4,15,5],[16,4,16,5],[17,4,17,5],[19,4,19,5],[20,4,20,5],[21,4,21,5],[23,0,23,1],[21,0,22,0]]}
["بنــــــــــــــــــــاية الضـــــــــــــــــــــــــحى"]
["كشف حساب المصعد و المبنى عن العام  2022"]
["الطابق","                 الشهر: ","نيسان -2022",null,null,"بلوك A","رابط الصفحات'!A1",null,"كانون الثاني 2022"]
[null,"الإيرادات",null,"المصاريف",null,null,null,null,"شباط  2022"]
[null,"الإسم","المبلغ","المصاريف","الشرح",null,null,null,"آذار  2022"]
[null,"احمد غانم",{"$f":"'جدول الأشهر-2022'!F4","v":0},null,"راتب الناطور/ رياض",null,null,null,"نيسان  2022"]
[5,"احمد يحيا",{"$f":"'جدول الأشهر-2022'!F5","v":0},null,"مواد تنظيف",null,"طلال بدر",null,"ايار  2022"]
[null,"خليل هواري",{"$f":"'جدول الأشهر-2022'!F6","v":0},null,"فاتورة كهرباء / عن شهري 9 و 10 /2018",null,null,null,"حزيران  2022"]
[null,"عباس كوراني",{"$f":"'جدول الأشهر-2022'!F7","v":0},null,null,null,"المرحوم زكي حمادي",null,"تموز  2022"]
[4,"هاني بري",{"$f":"'جدول الأشهر-2022'!F8","v":0},null,null,null,"ليلى نور الدين/ ابوهاشم",null,"آب  2022"]
[null,"شوقي فقية",{"$f":"'جدول الأشهر-2022'!F9","v":0},null,null,null,null,null,"ايلول  2022"]
[null," د بلان حمية",{"$f":"'جدول الأشهر-2022'!F10","v":0},null,null,null,null,null,"تشرين الأول  2022"]
[3,"عبداللة هرمناني",{"$f":"'جدول الأشهر-2022'!F11","v":0},null,null,null,null,null,"تشرين الثاني  2022"]
[null,"فؤاد إسماعيل",{"$f":"'جدول الأشهر-2022'!F12","v":0},null,null,null,null,null,"كانون الأول  2022"]
[null,"علي المولى",{"$f":"'جدول الأشهر-2022'!F13","v":0},null,null,null,"شقة الحاج سميح هيدوس",null,"جدول الأشهر"]
[2,"علي كركي",{"$f":"'جدول الأشهر-2022'!F14","v":0}]
[null,"محمد صفي الدين",{"$f":"'جدول الأشهر-2022'!F15","v":0}]
[null,"خليل شلهوب",{"$f":"'جدول الأشهر-2022'!F16","v":0},null,null,null,"ابراهيم ابو ملحم"]
[1,"اسامه زين الدين",{"$f":"'جدول الأشهر-2022'!F17","v":0}]
[null,"احمد حرب",{"$f":"'جدول الأشهر-2022'!F18","v":0}]
["ارضي",null,{"$f":"'جدول الأشهر-2022'!F19","v":25000},null,null,null,"حسن عواضة"]
["ايراد المحلات","الفرن",{"$f":"'جدول الأشهر-2022'!F20","v":"ترك"}]
[]
["المجموع  ",null,{"$f":"SUM(C6:C23)","v":25000},{"$f":"SUM(D6:D23)","v":0},"رصيد الشهر",{"$f":"C24-D24","v":25000}]
[null,null,null,null,"الرصيد السابق",{"$f":"'آذار   2022'!F26","v":-107750}]
[null,null,null,null,"اجمالي الرصيد ",{"$f":"F24+F25","v":-82750}]
[null,null,{"$f":"NoToTxt(F26,\"ليرة لبنانية\",\"قرشا\")","v":{"$error":"#NAME?"}}]
["التوقيع:",null,null,"التوقيع:"]

{"sheet":"ايار2022","index":5,"n_rows":28,"n_cols":9,"rows_kept":28,"cut":false,"hidden":false,"merged":[[6,4,6,5],[2,0,4,0],[3,1,3,2],[3,3,3,4],[4,4,4,5],[5,4,5,5],[18,4,18,5],[7,4,7,5],[8,4,8,5],[9,4,9,5],[10,4,10,5],[11,4,11,5],[12,4,12,5],[13,4,13,5],[14,4,14,5],[15,4,15,5],[16,4,16,5],[17,4,17,5],[19,4,19,5],[20,4,20,5],[21,4,21,5],[23,0,23,1],[21,0,22,0]]}
["بنــــــــــــــــــــاية الضـــــــــــــــــــــــــحى"]
["كشف حساب المصعد و المبنى عن العام  2022"]
["الطابق","                 الشهر: ","ايار -2022",null,null,"بلوك A","رابط الصفحات'!A1",null,"كانون الثاني 2022"]
[null,"الإيرادات",null,"المصاريف",null,null,null,null,"شباط  2022"]
[null,"الإسم","المبلغ","المصاريف","الشرح",null,null,null,"آذار  2022"]
[null,"احمد غانم",{"$f":"'جدول الأشهر-2022'!G4","v":0},null,"راتب الناطور/ رياض",null,null,null,"نيسان  2022"]
[5,"احمد يحيا",{"$f":"'جدول الأشهر-2022'!G5","v":0},null,"مواد تنظيف / س-ماركت ترمس",null,"طلال بدر",null,"ايار  2022"]
[null,"خليل هواري",{"$f":"'جدول الأشهر-2022'!G6","v":0},null,"قطع غيار/المصعد- رصور مع جنزير",null,null,null,"حزيران  2022"]
[null,"عباس كوراني",{"$f":"'جدول الأشهر-2022'!G7","v":0},null,null,null,"المرحوم زكي حمادي",null,"تموز  2022"]
[4,"هاني بري",{"$f":"'جدول الأشهر-2022'!G8","v":0},null,null,null,"ليلى نور الدين/ ابوهاشم",null,"آب  2022"]
[null,"شوقي فقية",{"$f":"'جدول الأشهر-2022'!G9","v":0},null,null,null,null,null,"ايلول  2022"]
[null," د بلان حمية",{"$f":"'جدول الأشهر-2022'!G10","v":0},null,null,null,null,null,"تشرين الأول  2022"]
[3,"عبداللة هرمناني",{"$f":"'جدول الأشهر-2022'!G11","v":0},null,null,null,null,null,"تشرين الثاني  2022"]
[null,"فؤاد إسماعيل",{"$f":"'جدول الأشهر-2022'!G12","v":0},null,null,null,null,null,"كانون الأول  2022"]
[null,"علي المولى",{"$f":"'جدول الأشهر-2022'!G13","v":0},null,null,null,"شقة الحاج سميح هيدوس",null,"جدول الأشهر"]
[2,"علي كركي",{"$f":"'جدول الأشهر-2022'!G14","v":0}]
[null,"محمد صفي الدين",{"$f":"'جدول الأشهر-2022'!G15","v":0}]
[null,"خليل شلهوب",{"$f":"'جدول الأشهر-2022'!G16","v":0},null,null,null,"ابراهيم ابو ملحم"]
[1,"اسامه زين الدين",{"$f":"'جدول الأشهر-2022'!G17","v":0}]
[null,"احمد حرب",{"$f":"'جدول الأشهر-2022'!G18","v":0}]
["ارضي",null,{"$f":"'جدول الأشهر-2022'!G19","v":0},null,null,null,"حسن عواضة"]
["ايراد المحلات","الفرن",{"$f":"'جدول الأشهر-2022'!G20","v":"ترك"}]
[]
["المجموع  ",null,{"$f":"SUM(C6:C23)","v":0},{"$f":"SUM(D6:D23)","v":0},"رصيد الشهر",{"$f":"G24-D24","v":0}]
[null,null,null,null,"الرصيد السابق",{"$f":"'نيسان 2022'!F26","v":-82750}]
[null,null,null,null,"اجمالي الرصيد ",{"$f":"F24+F25","v":-82750}]
[null,null,{"$f":"NoToTxt(F26,\"ليرة لبنانية\",\"قرشا\")","v":{"$error":"#NAME?"}}]
["التوقيع:",null,null,"التوقيع:"]

{"sheet":"حزيران2022","index":6,"n_rows":28,"n_cols":13,"rows_kept":28,"cut":false,"hidden":false,"merged":[[6,4,6,5],[2,0,4,0],[3,1,3,2],[3,3,3,4],[4,4,4,5],[5,4,5,5],[18,4,18,5],[7,4,7,5],[8,4,8,5],[9,4,9,5],[10,4,10,5],[11,4,11,5],[12,4,12,5],[13,4,13,5],[14,4,14,5],[15,4,15,5],[16,4,16,5],[17,4,17,5],[19,4,19,5],[20,4,20,5],[21,4,21,5],[23,0,23,1],[21,0,22,0]]}
["بنــــــــــــــــــــاية الضـــــــــــــــــــــــــحى"]
["كشف حساب المصعد و المبنى عن العام  2022"]
["الطابق","                 الشهر: ","حزيران -2022",null,null,"بلوك A","رابط الصفحات'!A1",null,"كانون الثاني 2022"]
[null,"الإيرادات",null,"المصاريف",null,null,null,null,"شباط  2022"]
[null,"الإسم","المبلغ","المصاريف","الشرح",null,null,null,"آذار  2022"]
[null,"احمد غانم",{"$f":"'جدول الأشهر-2022'!H4","v":0},null,"راتب الناطور/ رياض",null,null,null,"نيسان  2022"]
[5,"احمد يحيا",{"$f":"'جدول الأشهر-2022'!H5","v":0},null,"مواد تنظيف",null,"طلال بدر",null,"ايار  2022"]
[null,"خليل هواري",{"$f":"'جدول الأشهر-2022'!H6","v":0},null,"تغيير قفل باب غرفة الناطور",null,null,null,"حزيران  2022"]
[null,"عباس كوراني",{"$f":"'جدول الأشهر-2022'!H7","v":0},null,"صيانة المجارير و الصحية/تنظيف",null,"المرحوم زكي حمادي",null,"تموز  2022"]
[4,"هاني بري",{"$f":"'جدول الأشهر-2022'!H8","v":0},null,null,null,"ليلى نور الدين/ ابوهاشم",null,"آب  2022"]
[null,"شوقي فقية",{"$f":"'جدول الأشهر-2022'!H9","v":0},null,null,null,null,null,"ايلول  2022",null,null,null,{"$f":"350*1500","v":525000}]
[null," د بلان حمية",{"$f":"'جدول الأشهر-2022'!H10","v":0},null,null,null,null,null,"تشرين الأول  2022"]
[3,"عبداللة هرمناني",{"$f":"'جدول الأشهر-2022'!H11","v":0},null,null,null,null,null,"تشرين الثاني  2022"]
[null,"فؤاد إسماعيل",{"$f":"'جدول الأشهر-2022'!H12","v":0},null,null,null,null,null,"كانون الأول  2022"]
[null,"علي المولى",{"$f":"'جدول الأشهر-2022'!H13","v":0},null,null,null,"شقة الحاج سميح هيدوس",null,"جدول الأشهر"]
[2,"علي كركي",{"$f":"'جدول الأشهر-2022'!H14","v":0}]
[null,"محمد صفي الدين",{"$f":"'جدول الأشهر-2022'!H15","v":0}]
[null,"خليل شلهوب",{"$f":"'جدول الأشهر-2022'!H16","v":0},null,null,null,"ابراهيم ابو ملحم"]
[1,"اسامه زين الدين",{"$f":"'جدول الأشهر-2022'!H17","v":0}]
[null,"احمد حرب",{"$f":"'جدول الأشهر-2022'!H18","v":0}]
["ارضي","محمود حسن",{"$f":"'جدول الأشهر-2022'!H19","v":0},null,null,null,"حسن عواضة"]
["ايراد المحلات","الفرن",{"$f":"'جدول الأشهر-2022'!H20","v":"ترك"}]
[]
["المجموع  ",null,{"$f":"SUM(C6:C23)","v":0},{"$f":"SUM(D6:D23)","v":0},"رصيد الشهر",{"$f":"C24-D24","v":0}]
[null,null,null,null,"الرصيد السابق",{"$f":"ايار2022!F26","v":-82750}]
[null,null,null,null,"اجمالي الرصيد ",{"$f":"F24+F25","v":-82750}]
[null,null,{"$f":"NoToTxt(F26,\"ليرة لبنانية\",\"قرشا\")","v":{"$error":"#NAME?"}}]
["التوقيع:",null,null,"التوقيع:"]

{"sheet":"تموز 2022","index":7,"n_rows":28,"n_cols":9,"rows_kept":28,"cut":false,"hidden":false,"merged":[[6,4,6,5],[2,0,4,0],[3,1,3,2],[3,3,3,4],[4,4,4,5],[5,4,5,5],[18,4,18,5],[7,4,7,5],[8,4,8,5],[9,4,9,5],[10,4,10,5],[11,4,11,5],[12,4,12,5],[13,4,13,5],[14,4,14,5],[15,4,15,5],[16,4,16,5],[17,4,17,5],[19,4,19,5],[20,4,20,5],[21,4,21,5],[23,0,23,1],[21,0,22,0]]}
["بنــــــــــــــــــــاية الضـــــــــــــــــــــــــحى"]
["كشف حساب المصعد و المبنى عن العام  2022"]
["الطابق","                 الشهر: ","تموز -2022",null,null,"بلوك A","رابط الصفحات'!A1",null,"كانون الثاني 2022"]
[null,"الإيرادات",null,"المصاريف",null,null,null,null,"شباط  2022"]
[null,"الإسم","المبلغ","المصاريف","الشرح",null,null,null,"آذار  2022"]
[null,"احمد غانم",{"$f":"'جدول الأشهر-2022'!I4","v":0},null,"راتب الناطور/ رياض",null,null,null,"نيسان  2022"]
[5,"احمد يحيا",{"$f":"'جدول الأشهر-2022'!I5","v":0},null,"مواد تنظيف",null,"طلال بدر",null,"ايار  2022"]
[null,"خليل هواري",{"$f":"'جدول الأشهر-2022'!I6","v":0},null,"صيانة UPS - احمد يحيا",null,null,null,"حزيران  2022"]
[null,"عباس كوراني",{"$f":"'جدول الأشهر-2022'!I7","v":0},null,"دفعة من حساب عقد صيانة المصعد ايصال 1688",null,"المرحوم زكي حمادي",null,"تموز  2022"]
[4,"هاني بري",{"$f":"'جدول الأشهر-2022'!I8","v":0},null,null,null,"ليلى نور الدين/ ابوهاشم",null,"آب  2022"]
[null,"شوقي فقية",{"$f":"'جدول الأشهر-2022'!I9","v":0},null,null,null,null,null,"ايلول  2022"]
[null," د بلان حمية",{"$f":"'جدول الأشهر-2022'!I10","v":0},null,null,null,null,null,"تشرين الأول  2022"]
[3,"عبداللة هرمناني",{"$f":"'جدول الأشهر-2022'!I11","v":0},null,null,null,null,null,"تشرين الثاني  2022"]
[null,"فؤاد إسماعيل",{"$f":"'جدول الأشهر-2022'!I12","v":0},null,null,null,null,null,"كانون الأول  2022"]
[null,"علي المولى",{"$f":"'جدول الأشهر-2022'!I13","v":0},null,null,null,"شقة الحاج سميح هيدوس",null,"جدول الأشهر"]
[2,"علي كركي",{"$f":"'جدول الأشهر-2022'!I14","v":0}]
[null,"محمد صفي الدين",{"$f":"'جدول الأشهر-2022'!I15","v":0}]
[null,"خليل شلهوب",{"$f":"'جدول الأشهر-2022'!I16","v":0},null,null,null,"ابراهيم ابو ملحم"]
[1,"اسامه زين الدين",{"$f":"'جدول الأشهر-2022'!I17","v":0}]
[null,"احمد حرب",{"$f":"'جدول الأشهر-2022'!I18","v":0}]
["ارضي","محمود حسن",{"$f":"'جدول الأشهر-2022'!I19","v":0},null,null,null,"حسن عواضة"]
["ايراد المحلات","الفرن",{"$f":"'جدول الأشهر-2022'!I20","v":"ترك"}]
[]
["المجموع  ",null,{"$f":"SUM(C6:C23)","v":0},{"$f":"SUM(D6:D23)","v":0},"رصيد الشهر",{"$f":"C24-D24","v":0}]
[null,null,null,null,"الرصيد السابق",{"$f":"حزيران2022!F26","v":-82750}]
[null,null,null,null,"اجمالي الرصيد ",{"$f":"F24+F25","v":-82750}]
[null,null,{"$f":"NoToTxt(F26,\"ليرة لبنانية\",\"قرشا\")","v":{"$error":"#NAME?"}}]
["التوقيع:",null,null,"التوقيع:"]

{"sheet":"آب  2022 ","index":8,"n_rows":28,"n_cols":9,"rows_kept":28,"cut":false,"hidden":false,"merged":[[6,4,6,5],[2,0,4,0],[3,1,3,2],[3,3,3,4],[4,4,4,5],[5,4,5,5],[18,4,18,5],[7,4,7,5],[8,4,8,5],[9,4,9,5],[10,4,10,5],[11,4,11,5],[12,4,12,5],[13,4,13,5],[14,4,14,5],[15,4,15,5],[16,4,16,5],[17,4,17,5],[19,4,19,5],[20,4,20,5],[21,4,21,5],[23,0,23,1],[21,0,22,0]]}
["بنــــــــــــــــــــاية الضـــــــــــــــــــــــــحى"]
["كشف حساب المصعد و المبنى عن العام  2022"]
["الطابق","                 الشهر: ","آب -2022",null,null,"بلوك A","رابط الصفحات'!A1",null,"كانون الثاني 2022"]
[null,"الإيرادات",null,"المصاريف",null,null,null,null,"شباط  2022"]
[null,"الإسم","المبلغ","المصاريف","الشرح",null,null,null,"آذار  2022"]
[null,"احمد غانم",{"$f":"'جدول الأشهر-2022'!J4","v":0},null,"راتب الناطور/ أبو ضياء",null,null,null,"نيسان  2022"]
[5,"احمد يحيا",{"$f":"'جدول الأشهر-2022'!J5","v":0},null,"مواد تنظيف -تعاونية ترمس",null,"طلال بدر","عن تموز و آب 2015","ايار  2022"]
[null,"خليل هواري",{"$f":"'جدول الأشهر-2022'!J6","v":0},null,"غطاء ريغار مع قاعدة عدد 2 -10/8/2020",null,null,null,"حزيران  2022"]
[null,"عباس كوراني",{"$f":"'جدول الأشهر-2022'!J7","v":0},null,null,null,"المرحوم زكي حمادي",null,"تموز  2022"]
[4,"هاني بري",{"$f":"'جدول الأشهر-2022'!J8","v":0},null,null,null,"ليلى نور الدين/ ابوهاشم",null,"آب  2022"]
[null,"شوقي فقية",{"$f":"'جدول الأشهر-2022'!J9","v":0},null,null,null,null,null,"ايلول  2022"]
[null," د بلان حمية",{"$f":"'جدول الأشهر-2022'!J10","v":0},null,null,null,null,null,"تشرين الأول  2022"]
[3,"عبداللة هرمناني",{"$f":"'جدول الأشهر-2022'!J11","v":0},null,null,null,null,null,"تشرين الثاني  2022"]
[null,"فؤاد إسماعيل",{"$f":"'جدول الأشهر-2022'!J12","v":0},null,null,null,null,null,"كانون الأول  2022"]
[null,"علي المولى",{"$f":"'جدول الأشهر-2022'!J13","v":0},null,null,null,"شقة الحاج سميح هيدوس",null,"جدول الأشهر"]
[2,"علي كركي",{"$f":"'جدول الأشهر-2022'!J14","v":0}]
[null,"محمد صفي الدين",{"$f":"'جدول الأشهر-2022'!J15","v":0}]
[null,"خليل شلهوب",{"$f":"'جدول الأشهر-2022'!J16","v":0},null,null,null,"ابراهيم ابو ملحم"]
[1,"اسامه زين الدين",{"$f":"'جدول الأشهر-2022'!J17","v":0}]
[null,"احمد حرب",{"$f":"'جدول الأشهر-2022'!J18","v":0}]
["ارضي","محمود حسن",{"$f":"'جدول الأشهر-2022'!J19","v":0},null,null,null,"حسن عواضة"]
["ايراد المحلات","الفرن",{"$f":"'جدول الأشهر-2022'!J20","v":"ترك"}]
[]
["المجموع  ",null,{"$f":"SUM(C6:C23)","v":0},{"$f":"SUM(D6:D23)","v":0},"رصيد الشهر",{"$f":"C24-D24","v":0}]
[null,null,null,null,"الرصيد السابق",{"$f":"'تموز 2022'!F26","v":-82750}]
[null,null,null,null,"اجمالي الرصيد ",{"$f":"F24+F25","v":-82750}]
[null,null,{"$f":"NoToTxt(F26,\"ليرة لبنانية\",\"قرشا\")","v":{"$error":"#NAME?"}}]
["التوقيع:",null,null,"التوقيع:"]

{"sheet":"ايلول 2022 ","index":9,"n_rows":28,"n_cols":9,"rows_kept":28,"cut":false,"hidden":false,"merged":[[6,4,6,5],[13,4,13,5],[14,4,14,5],[7,4,7,5],[8,4,8,5],[9,4,9,5],[10,4,10,5],[11,4,11,5],[12,4,12,5],[2,0,4,0],[3,1,3,2],[3,3,3,4],[4,4,4,5],[5,4,5,5],[23,0,23,1],[21,0,22,0],[15,4,15,5],[16,4,16,5],[17,4,17,5],[18,4,18,5],[19,4,19,5],[20,4,20,5],[21,4,21,5]]}
["بنــــــــــــــــــــاية الضـــــــــــــــــــــــــحى"]
["كشف حساب المصعد و المبنى عن العام  2022"]
["الطابق","                 الشهر: ","ايلول -2022",null,null,"بلوك A","رابط الصفحات'!A1",null,"كانون الثاني 2022"]
[null,"الإيرادات",null,"المصاريف",null,null,null,null,"شباط  2022"]
[null,"الإسم","المبلغ","المصاريف","الشرح",null,null,null,"آذار  2022"]
[null,"احمد غانم",{"$f":"'جدول الأشهر-2022'!K4","v":0},null,"راتب الناطور/ رياض",null,null,null,"نيسان  2022"]
[5,"احمد يحيا",{"$f":"'جدول الأشهر-2022'!K5","v":0},null,"مواد تنظيف",null,"طلال بدر",null,"ايار  2022"]
[null,"خليل هواري",{"$f":"'جدول الأشهر-2022'!K6","v":0},null,"صيانة المصعد /تسديد كامل الحساب حتى تاريخه 17/9/2020 +عقد التامين",null,null,null,"حزيران  2022"]
[null,"عباس كوراني",{"$f":"'جدول الأشهر-2022'!K7","v":0},null,null,null,"المرحوم زكي حمادي",null,"تموز  2022"]
[4,"هاني بري",{"$f":"'جدول الأشهر-2022'!K8","v":0},null,null,null,"ليلى نور الدين/ ابوهاشم",null,"آب  2022"]
[null,"شوقي فقية",{"$f":"'جدول الأشهر-2022'!K9","v":0},null,null,null,null,null,"ايلول  2022"]
[null," د بلان حمية",{"$f":"'جدول الأشهر-2022'!K10","v":0},null,null,null,null,null,"تشرين الأول  2022"]
[3,"عبداللة هرمناني",{"$f":"'جدول الأشهر-2022'!K11","v":0},null,null,null,null,null,"تشرين الثاني  2022"]
[null,"فؤاد إسماعيل",{"$f":"'جدول الأشهر-2022'!K12","v":0},null,null,null,null,null,"كانون الأول  2022"]
[null,"علي المولى",{"$f":"'جدول الأشهر-2022'!K13","v":0},null,null,null,"شقة الحاج سميح هيدوس",null,"جدول الأشهر"]
[2,"علي كركي",{"$f":"'جدول الأشهر-2022'!K14","v":0}]
[null,"محمد صفي الدين",{"$f":"'جدول الأشهر-2022'!K15","v":0}]
[null,"خليل شلهوب",{"$f":"'جدول الأشهر-2022'!K16","v":0},null,null,null,"ابراهيم ابو ملحم"]
[1,"اسامه زين الدين",{"$f":"'جدول الأشهر-2022'!K17","v":0}]
[null,"احمد حرب",{"$f":"'جدول الأشهر-2022'!K18","v":0}]
["ارضي","محمود حسن",{"$f":"'جدول الأشهر-2022'!K19","v":0},null,null,null,"حسن عواضة"]
["ايراد المحلات","الفرن",{"$f":"'جدول الأشهر-2022'!K20","v":"ترك"}]
[]
["المجموع  ",null,{"$f":"SUM(C6:C23)","v":0},{"$f":"SUM(D6:D23)","v":0},"رصيد الشهر",{"$f":"C24-D24","v":0}]
[null,null,null,null,"الرصيد السابق",{"$f":"'آب  2022 '!F26","v":-82750}]
[null,null,null,null,"اجمالي الرصيد ",{"$f":"F24+F25","v":-82750}]
[null,null,{"$f":"NoToTxt(F26,\"ليرة لبنانية\",\"قرشا\")","v":{"$error":"#NAME?"}}]
["التوقيع:",null,null,"التوقيع:"]

{"sheet":"تشرين الأول2022","index":10,"n_rows":28,"n_cols":9,"rows_kept":28,"cut":false,"hidden":false,"merged":[[6,4,6,5],[2,0,4,0],[3,1,3,2],[3,3,3,4],[4,4,4,5],[5,4,5,5],[18,4,18,5],[7,4,7,5],[8,4,8,5],[9,4,9,5],[10,4,10,5],[11,4,11,5],[12,4,12,5],[13,4,13,5],[14,4,14,5],[15,4,15,5],[16,4,16,5],[17,4,17,5],[19,4,19,5],[20,4,20,5],[21,4,21,5],[23,0,23,1],[21,0,22,0]]}
["بنــــــــــــــــــــاية الضـــــــــــــــــــــــــحى"]
["كشف حساب المصعد و المبنى عن العام  2022"]
["الطابق","                 الشهر: ","تشرين الأول -2022",null,null,"بلوك A","رابط الصفحات'!A1",null,"كانون الثاني 2022"]
[null,"الإيرادات",null,"المصاريف",null,null,null,null,"شباط  2022"]
[null,"الإسم","المبلغ","المصاريف","الشرح",null,null,null,"آذار  2022"]
[null,"احمد غانم",{"$f":"'جدول الأشهر-2022'!L4","v":0},null,"راتب الناطور/ رياض",null,null,null,"نيسان  2022"]
[5,"احمد يحيا",{"$f":"'جدول الأشهر-2022'!L5","v":0},null,"مواد تنظيف",null,"طلال بدر",null,"ايار  2022"]
[null,"خليل هواري",{"$f":"'جدول الأشهر-2022'!L6","v":0},null,null,null,null,null,"حزيران  2022"]
[null,"عباس كوراني",{"$f":"'جدول الأشهر-2022'!L7","v":0},null,null,null,"المرحوم زكي حمادي",null,"تموز  2022"]
[4,"هاني بري",{"$f":"'جدول الأشهر-2022'!L8","v":0},null,null,null,"ليلى نور الدين/ ابوهاشم",null,"آب  2022"]
[null,"شوقي فقية",{"$f":"'جدول الأشهر-2022'!L9","v":0},null,null,null,null,null,"ايلول  2022"]
[null," د بلان حمية",{"$f":"'جدول الأشهر-2022'!L10","v":0},null,null,null,null,null,"تشرين الأول  2022"]
[3,"عبداللة هرمناني",{"$f":"'جدول الأشهر-2022'!L11","v":0},null,null,null,null,null,"تشرين الثاني  2022"]
[null,"فؤاد إسماعيل",{"$f":"'جدول الأشهر-2022'!L12","v":0},null,null,null,null,null,"كانون الأول  2022"]
[null,"علي المولى",{"$f":"'جدول الأشهر-2022'!L13","v":0},null,null,null,"شقة الحاج سميح هيدوس",null,"جدول الأشهر"]
[2,"علي كركي",{"$f":"'جدول الأشهر-2022'!L14","v":0}]
[null,"محمد صفي الدين",{"$f":"'جدول الأشهر-2022'!L15","v":0}]
[null,"خليل شلهوب",{"$f":"'جدول الأشهر-2022'!L16","v":0},null,null,null,"ابراهيم ابو ملحم"]
[1,"اسامه زين الدين",{"$f":"'جدول الأشهر-2022'!L17","v":0}]
[null,"احمد حرب",{"$f":"'جدول الأشهر-2022'!L18","v":0}]
["ارضي","محمود حسن",{"$f":"'جدول الأشهر-2022'!L19","v":0},null,null,null,"حسن عواضة"]
["ايراد المحلات","الفرن",{"$f":"'جدول الأشهر-2022'!L20","v":"ترك"}]
[]
["المجموع  ",null,{"$f":"SUM(C6:C23)","v":0},{"$f":"SUM(D6:D23)","v":0},"رصيد الشهر",{"$f":"C24-D24","v":0}]
[null,null,null,null,"الرصيد السابق",{"$f":"'ايلول 2022 '!F26","v":-82750}]
[null,null,null,null,"اجمالي الرصيد ",{"$f":"F24+F25","v":-82750}]
[null,null,{"$f":"NoToTxt(F26,\"ليرة لبنانية\",\"قرشا\")","v":{"$error":"#NAME?"}}]
["التوقيع:",null,null,"التوقيع:"]

{"sheet":"تشرين الثاني2022","index":11,"n_rows":28,"n_cols":11,"rows_kept":28,"cut":false,"hidden":false,"merged":[[6,4,6,5],[2,0,4,0],[3,1,3,2],[3,3,3,4],[4,4,4,5],[5,4,5,5],[18,4,18,5],[7,4,7,5],[8,4,8,5],[9,4,9,5],[10,4,10,5],[11,4,11,5],[12,4,12,5],[13,4,13,5],[14,4,14,5],[15,4,15,5],[16,4,16,5],[17,4,17,5],[19,4,19,5],[20,4,20,5],[21,4,21,5],[23,0,23,1],[21,0,22,0]]}
["بنــــــــــــــــــــاية الضـــــــــــــــــــــــــحى"]
["كشف حساب المصعد و المبنى عن العام  2022"]
["الطابق","                 الشهر: ","تشرين الثاني -2022",null,null,"بلوك A","رابط الصفحات'!A1",null,"كانون الثاني 2022"]
[null,"الإيرادات",null,"المصاريف",null,null,null,null,"شباط  2022"]
[null,"الإسم","المبلغ","المصاريف","الشرح",null,null,null,"آذار  2022"]
[null,"احمد غانم",{"$f":"'جدول الأشهر-2022'!M4","v":0},null,"راتب الناطور/ أبو ضياء",null,null,null,"نيسان  2022"]
[5,"احمد يحيا",{"$f":"'جدول الأشهر-2022'!M5","v":0},null,"مواد تنظيف",null,"طلال بدر",null,"ايار  2022"]
[null,"خليل هواري",{"$f":"'جدول الأشهر-2022'!M6","v":0},null,"تركيب قفل لباب السطح/فاتورة اليتيم",null,null,null,"حزيران  2022"]
[null,"عباس كوراني",{"$f":"'جدول الأشهر-2022'!M7","v":0},null,"فاتورة كهرباءعن اشهر 11 و 12 /2018",null,"المرحوم زكي حمادي",null,"تموز  2022"]
[4,"هاني بري",{"$f":"'جدول الأشهر-2022'!M8","v":0},null,"صيانة المجارير و الصحية/قسطل تصرف في المدخل",null,"ليلى نور الدين/ ابوهاشم",null,"آب  2022"]
[null,"شوقي فقية",{"$f":"'جدول الأشهر-2022'!M9","v":0},null,null,null,null,null,"ايلول  2022"]
[null," د بلان حمية",{"$f":"'جدول الأشهر-2022'!M10","v":0},null,null,null,null,null,"تشرين الأول  2022",null,"واصل مبلغ 210000 ليرة عن ستة اشهر الأشهر من جزيران الى تشرين الثاني 2014"]
[3,"عبداللة هرمناني",{"$f":"'جدول الأشهر-2022'!M11","v":0},null,null,null,null,null,"تشرين الثاني  2022"]
[null,"فؤاد إسماعيل",{"$f":"'جدول الأشهر-2022'!M12","v":0},null,null,null,null,null,"كانون الأول  2022"]
[null,"علي المولى",{"$f":"'جدول الأشهر-2022'!M13","v":0},null,null,null,"شقة الحاج سميح هيدوس",null,"جدول الأشهر"]
[2,"علي كركي",{"$f":"'جدول الأشهر-2022'!M14","v":0}]
[null,"محمد صفي الدين",{"$f":"'جدول الأشهر-2022'!M15","v":0}]
[null,"خليل شلهوب",{"$f":"'جدول الأشهر-2022'!M16","v":0},null,null,null,"ابراهيم ابو ملحم"]
[1,"اسامه زين الدين",{"$f":"'جدول الأشهر-2022'!M17","v":0}]
[null,"احمد حرب",{"$f":"'جدول الأشهر-2022'!M18","v":0}]
["ارضي","محمود حسن",{"$f":"'جدول الأشهر-2022'!M19","v":0},null,null,null,"حسن عواضة"]
["ايراد المحلات","الفرن",{"$f":"'جدول الأشهر-2022'!M20","v":"ترك"}]
[]
["المجموع  ",null,{"$f":"SUM(C6:C23)","v":0},{"$f":"SUM(D6:D23)","v":0},"رصيد الشهر",{"$f":"C24-D24","v":0}]
[null,null,null,null,"الرصيد السابق",{"$f":"'تشرين الأول2022'!F26","v":-82750}]
[null,null,null,null,"اجمالي الرصيد ",{"$f":"F24+F25","v":-82750}]
[null,null,{"$f":"NoToTxt(F26,\"ليرة لبنانية\",\"قرشا\")","v":{"$error":"#NAME?"}}]
["التوقيع:",null,null,"التوقيع:"]

{"sheet":"كانون الأول2022","index":12,"n_rows":28,"n_cols":9,"rows_kept":28,"cut":false,"hidden":false,"merged":[[6,4,6,5],[2,0,4,0],[3,1,3,2],[3,3,3,4],[4,4,4,5],[5,4,5,5],[18,4,18,5],[7,4,7,5],[8,4,8,5],[9,4,9,5],[10,4,10,5],[11,4,11,5],[12,4,12,5],[13,4,13,5],[14,4,14,5],[15,4,15,5],[16,4,16,5],[17,4,17,5],[19,4,19,5],[20,4,20,5],[21,4,21,5],[23,0,23,1],[21,0,22,0]]}
["بنــــــــــــــــــــاية الضـــــــــــــــــــــــــحى"]
["كشف حساب المصعد و المبنى عن العام  2022"]
["الطابق","                 الشهر: ","كانون الأول -2022",null,null,"بلوك A","رابط الصفحات'!A1",null,"كانون الثاني 2022"]
[null,"الإيرادات",null,"المصاريف",null,null,null,null,"شباط  2022"]
[null,"الإسم","المبلغ","المصاريف","الشرح",null,null,null,"آذار  2022"]
[null,"احمد غانم",{"$f":"'جدول الأشهر-2022'!N4","v":0},null,"راتب الناطور/ رياض",null,null,null,"نيسان  2022"]
[5,"احمد يحيا",{"$f":"'جدول الأشهر-2022'!N5","v":0},null,"مواد تنظيف",null,"طلال بدر",null,"ايار  2022"]
[null,"خليل هواري",{"$f":"'جدول الأشهر-2022'!N6","v":0},null,null,null,null,null,"حزيران  2022"]
[null,"عباس كوراني",{"$f":"'جدول الأشهر-2022'!N7","v":0},null,null,null,"المرحوم زكي حمادي",null,"تموز  2022"]
[4,"هاني بري",{"$f":"'جدول الأشهر-2022'!N8","v":0},null,null,null,"ليلى نور الدين/ ابوهاشم",null,"آب  2022"]
[null,"شوقي فقية",{"$f":"'جدول الأشهر-2022'!N9","v":0},null,null,null,null,null,"ايلول  2022"]
[null," د بلان حمية",{"$f":"'جدول الأشهر-2022'!N10","v":0},null,null,null,null,null,"تشرين الأول  2022"]
[3,"عبداللة هرمناني",{"$f":"'جدول الأشهر-2022'!N11","v":0},null,null,null,null,null,"تشرين الثاني  2022"]
[null,"فؤاد إسماعيل",{"$f":"'جدول الأشهر-2022'!N12","v":0},null,null,null,null,null,"كانون الأول  2022"]
[null,"علي المولى",{"$f":"'جدول الأشهر-2022'!N13","v":0},null,null,null,"شقة الحاج سميح هيدوس",null,"جدول الأشهر"]
[2,"علي كركي",{"$f":"'جدول الأشهر-2022'!N14","v":0}]
[null,"محمد صفي الدين",{"$f":"'جدول الأشهر-2022'!N15","v":0}]
[null,"خليل شلهوب",{"$f":"'جدول الأشهر-2022'!N16","v":0},null,null,null,"ابراهيم ابو ملحم"]
[1,"اسامه زين الدين",{"$f":"'جدول الأشهر-2022'!N17","v":0}]
[null,"احمد حرب",{"$f":"'جدول الأشهر-2022'!N18","v":0}]
["ارضي","محمود حسن",{"$f":"'جدول الأشهر-2022'!N19","v":0},null,null,null,"حسن عواضة"]
["ايراد المحلات","الفرن",{"$f":"'جدول الأشهر-2022'!N20","v":"ترك"}]
[]
["المجموع  ",null,{"$f":"SUM(C6:C23)","v":0},{"$f":"SUM(D6:D23)","v":0},"رصيد الشهر",{"$f":"C24-D24","v":0}]
[null,null,null,null,"الرصيد السابق",{"$f":"'تشرين الثاني2022'!F26","v":-82750}]
[null,null,null,null,"اجمالي الرصيد ",{"$f":"F24+F25","v":-82750}]
[null,null,{"$f":"NoToTxt(F26,\"ليرة لبنانية\",\"قرشا\")","v":{"$error":"#NAME?"}}]
["التوقيع:",null,null,"التوقيع:"]

{"sheet":"جدول الأشهر-2022","index":13,"n_rows":24,"n_cols":27,"rows_kept":24,"cut":false,"hidden":false,"merged":[[21,0,21,1],[1,0,2,0],[1,1,2,1],[1,14,2,14],[1,15,2,15],[19,0,20,0]]}
[" "]
["الطابق",2022,"كانون الثاني","شباط","آذار","نيسان","ايار","حزيران","تموز","آب","ايلول","تشرين الأول","تشرين الثاني","كانون الأول","المجموع","المتاخرات"]
[null,null,"Jan","Feb","Mar","Apr","May","Jun","Jul","Aug","Sep","Oct","Nov","Dec"]
[null,"احمد غانم",35000,35000,null,null,null,null,null,null,null,null,null,null,{"$f":"SUM(C4:N4)","v":70000},{"$f":"420000-O4","v":350000}]
[5,"احمد يحيا",0,0,null,null,null,null,null,null,null,null,null,null,{"$f":"SUM(C5:N5)","v":0},{"$f":"420000-O5","v":420000}]
[null,"خليل هواري",30000,30000,null,null,null,null,null,null,null,null,null,null,60000,{"$f":"360000-O6","v":300000}]
["حمادي","عباس كوراني",35000,35000,null,null,null,null,null,null,null,null,null,null,70000,350000]
[4,"هاني بري",0,0,null,null,null,null,null,null,null,null,null,null,0,420000]
[null,"شوقي فقية",35000,35000,null,null,null,null,null,null,null,null,null,null,70000,350000,null,null,null,null,null,null,null,"شقة السيد دبلان حميــه"]
[null,"د بلان حمية",null,0,null,null,null,null,null,null,null,null,null,null,0,420000,"واصل 210,000  عن الفترة من حزيران 2014 الى تشرين الثاني2014",null,null,null,null,null,"متأخرات من كانون الأول 2014 - حتى تاريخة"]
[3,"عبداللة هرمناني",35000,35000,null,null,null,null,null,null,null,null,null,null,70000,350000,null,null,null,null,null,null,"الفترة من :","الى :"]
[null,"فؤاد إسماعيل",35000,35000,null,null,null,null,null,null,null,null,null,null,70000,350000,null,null,null,"كانون الثاني 2022",null,null,"2014-12-01",{"$f":"TODAY()","v":"2022-11-15"},{"$f":"DATEDIF(W12,X12,\"m\")","v":95},"شهراً"]
[null,"علي المولى",35000,35000,null,null,null,null,null,null,null,null,null,null,70000,350000,"سميح هيدوس",null,null,"شباط  2022",null,null,null,{"$f":"Y12* 35000","v":3325000},{"$f":"35000*Y12","v":3325000},"ل.ل"]
[2,"علي كركي",35000,35000,null,null,null,null,null,null,null,null,null,null,70000,350000,null,null,null,"شباط  2022",null,null,{"$f":"DATEDIF(W12,X12,\"y\")&\" years, \"\n&DATEDIF(W12,X12,\"ym\")&\" months, \"\n&X12-DATE(YEAR(X12),MONTH(X12),1)&\" days\"","v":"7 years, 11 months, 14 days"},null,null,null,{"$f":"DATEDIF(W12,X12,\"Y\") & \" Years, \" & DATEDIF(W12,X12,\"YM\") & \" Months\"","v":"7 Years, 11 Months"}]
[null,"محمد صفي الدين",35000,0,null,null,null,null,null,null,null,null,null,null,35000,385000,null,null,null,"نيسان  2022"]
[null,"خليل شلهوب",25000,25000,null,null,null,null,null,null,null,null,null,null,50000,{"$f":"25000*12-O16","v":250000},null,null,null,"ايار  2022"]
[1,"اسامة زين الدين",25000,25000,null,null,null,null,null,null,null,null,null,null,50000,{"$f":"300000-O17","v":250000},"شقة يتيم",null,null,"حزيران  2022"]
[null,"احمد حرب",25000,25000,null,null,null,null,null,null,null,null,null,null,50000,{"$f":"300000-O18","v":250000},null,null,null,"تموز  2022"]
["ارضي",null,25000,25000,25000,25000,null,null,null,null,null,null,null,null,100000,{"$f":"300000-O19","v":200000},"حسن عواضة شهرين 2014",null,null,"آب  2022"]
["المحلات","الفرن",null,null,null,"ترك","ترك","ترك","ترك","ترك","ترك","ترك","ترك","ترك",0,{"$f":"120000-O20","v":120000},null,"بالدولار",null,"ايلول  2022"]
[null,null,null,null,null,null,null,null,null,null,null,null,null,null,0,0,null,{"$f":"P22/1500","v":3643.3333333333335},null,"تشرين الأول  2022"]
["المجموع العام",null,{"$f":"SUM(C4:C21)","v":410000},{"$f":"SUM(D4:D21)","v":375000},25000,25000,0,0,0,0,0,0,0,0,835000,{"$f":"SUM(P4:P21)","v":5465000},null,null,null,"تشرين الثاني  2022"]
[null,null,null,null,null,null,null,"مجموع المحصــل:",null,{"$f":"NoToTxt(O2221,\"ليرة لبنانية\",\"قرشا\")","v":{"$error":"#NAME?"}},null,null,null,null,null,null,null,null,null,"كانون الأول  2022"]
[null,null,null,null,null,null,null,"مجموع المتأحرات:",null,{"$f":"NoToTxt(P22,\"ليرة لبنانية\",\"قرشا\")","v":{"$error":"#NAME?"}}]